fUST/lending_fUST_20250615
["ID","MTS","AMOUNT","RATE_DAILY","PERIOD"]
[365849168,1749957043229,-2556.6,0.00022739,4]
[365849170,1749957043239,-534.69,0.00022739,4]
[365849171,1749957043249,-460.0,0.00022739,4]
[365849172,1749957043260,-387.65612214,0.00022739,4]
[365849173,1749957043270,-567.76,0.00022739,4]
[365849174,1749957043280,-475.11962312,0.00022739,4]
[365849175,1749957043290,-264.17903092,0.00022739,4]
[365849176,1749957043300,-624.12,0.00022739,4]
[365849177,1749957043309,-460.0,0.00022739,4]
[365849178,1749957043320,-460.0,0.00022739,4]
[365849179,1749957043330,-511.65,0.00022739,4]
[365849180,1749957043340,-460.0,0.00022739,4]
[365849181,1749957043350,-460.0,0.00022739,4]
[365849182,1749957043360,-698.94,0.00022739,4]
[365849183,1749957043371,-460.0,0.00022739,4]
[365849184,1749957043381,-4037.64,0.00022739,4]
[365849185,1749957043390,-2862.62,0.00022739,4]
[365849186,1749957043400,-3366.67,0.00022739,4]
[365849188,1749957043410,-928.5,0.00022739,4]
[365849189,1749957043419,-429.77149329,0.00022739,4]
[365849191,1749957043429,-3798.54,0.00022739,4]
[365849193,1749957043438,-840.17,0.00022739,4]
[365849195,1749957043448,-460.0,0.00022739,4]
[365849197,1749957043457,-4684.17,0.00022739,4]
[365849199,1749957043467,-1265.76,0.00022739,4]
[365849201,1749957043476,-460.0,0.00022739,4]
[365849203,1749957043485,-1633.92,0.00022739,4]
[365849205,1749957043495,-856.87,0.00022739,4]
[365849207,1749957043504,-460.0,0.00022739,4]
[365849209,1749957043514,-1992.96,0.00022739,4]
[365849211,1749957043523,-345.7580872,0.00022739,4]
[365849213,1749957043532,-982.09,0.00022739,4]
[365849215,1749957043541,-460.0,0.00022739,4]
[365849217,1749957043552,-585.25,0.00022739,4]
[365849219,1749957043567,-460.0,0.00022739,4]
[365849221,1749957043577,-669.0,0.00022739,4]
[365849223,1749957043586,-460.0,0.00022739,4]
[365849225,1749957043596,-783.8,0.00022739,4]
[365849227,1749957043607,-460.0,0.00022739,4]
[365849228,1749957043616,-1785.55,0.00022739,4]
[365849229,1749957043626,-573.55,0.00022739,4]
[365849230,1749957043637,-391.20440668,0.00022739,4]
[365849231,1749957043646,-460.0,0.00022739,4]
[365849232,1749957043656,-460.0,0.00022739,4]
[365849233,1749957043665,-460.0,0.00022739,4]
[365849234,1749957043674,-460.0,0.00022739,4]
[365849235,1749957043684,-460.0,0.00022739,4]
[365849236,1749957043694,-460.0,0.00022739,4]
[365849237,1749957043703,-460.0,0.00022739,4]
[365849238,1749957043712,-2026.74,0.00022739,4]
[365849239,1749957043722,-460.0,0.00022739,4]
[365849240,1749957043732,-504.91,0.00022739,4]
[365849241,1749957043741,-460.0,0.00022739,4]
[365849243,1749957043751,-460.0,0.00022739,4]
[365849245,1749957043760,-576.52,0.00022739,4]
[365849246,1749957043770,-623.27,0.00022739,4]
[365849247,1749957043779,-581.42,0.00022739,4]
[365849248,1749957043788,-935.69,0.00022739,4]
[365849249,1749957043798,-593.12,0.00022739,4]
[365849250,1749957043808,-460.0,0.00022739,4]
[365849251,1749957043817,-460.0,0.00022739,4]
[365849252,1749957043827,-460.0,0.00022739,4]
[365849253,1749957043836,-3148.79,0.00022739,4]
[365849254,1749957043846,-460.0,0.00022739,4]
[365849255,1749957043855,-2007.11,0.00022739,4]
[365849256,1749957043865,-1299.81,0.00022739,4]
[365849257,1749957043875,-603.71,0.00022739,4]
[365849258,1749957043885,-460.0,0.00022739,4]
[365849259,1749957043894,-460.0,0.00022739,4]
[365849260,1749957043904,-621.56,0.00022739,4]
[365849261,1749957043914,-460.0,0.00022739,4]
[365849262,1749957043924,-460.0,0.00022739,4]
[365849263,1749957043934,-563.82749506,0.00022739,4]
[365849264,1749957043944,-460.0,0.00022739,4]
[365849265,1749957043954,-1217.29,0.00022739,4]
[365849266,1749957043964,-2123.16,0.00022739,4]
[365849267,1749957043974,-460.0,0.00022739,4]
[365849268,1749957043984,-644.4,0.00022739,4]
[365849269,1749957043994,-460.0,0.00022739,4]
[365849270,1749957044005,-460.0,0.00022739,4]
[365849271,1749957044014,-438.14,0.00022739,4]
[365849273,1749957044024,-500.0,0.00022773,2]
[365849274,1749957044033,-503.34287607,0.00022773,2]
[365849276,1749957044043,-500.0,0.00022773,2]
[365849278,1749957044053,-500.0,0.00022773,2]
[365849280,1749957044063,-500.0,0.00022773,2]
[365849282,1749957044073,-740.32,0.000228,7]
[365849284,1749957044082,-887.47691889,0.00022854,2]
[365849286,1749957044092,-1100.34981613,0.000229,8]
[365849287,1749957044102,-500.0,0.0002298,2]
[365849289,1749957044112,-500.0,0.00023002,2]
[365849290,1749957044122,-1100.34981603,0.00023003,8]
[365849293,1749957044132,-500.0,0.00023009,2]
[365849295,1749957044143,-305.08020661,0.00023013,4]
[365849297,1749957044153,-460.0,0.00023013,4]
[365849299,1749957044163,-460.0,0.00023013,4]
[365849301,1749957044174,-460.0,0.00023013,4]
[365849303,1749957044184,-460.0,0.00023013,4]
[365849305,1749957044194,-460.0,0.00023013,4]
[365849307,1749957044204,-460.0,0.00023013,4]
[365849309,1749957044214,-460.0,0.00023013,4]
[365849311,1749957044227,-390.86355408,0.00023013,4]
[365849313,1749957044237,-302.84011172,0.00023013,4]
[365849315,1749957044247,-460.0,0.00023013,4]
[365849317,1749957044257,-460.0,0.00023013,4]
[365849319,1749957044266,-460.0,0.00023013,4]
[365849321,1749957044276,-627.93,0.00023013,4]
[365849323,1749957044285,-597.34,0.00023013,4]
[365849325,1749957044296,-460.0,0.00023013,4]
[365849326,1749957044305,-460.0,0.00023013,4]
[365849327,1749957044315,-718.27,0.00023013,4]
[365849328,1749957044324,-460.0,0.00023013,4]
[365849329,1749957044335,-253.95705016,0.00023013,4]
[365849330,1749957044345,-425.9230502,0.00023013,4]
[365849331,1749957044355,-460.0,0.00023013,4]
[365849332,1749957044365,-460.0,0.00023013,4]
[365849333,1749957044375,-754.2,0.00023013,4]
[365849334,1749957044385,-460.0,0.00023013,4]
[365849335,1749957044395,-460.0,0.00023013,4]
[365849336,1749957044405,-460.0,0.00023013,4]
[365849337,1749957044415,-460.0,0.00023013,4]
[365849338,1749957044425,-460.0,0.00023013,4]
[365849339,1749957044435,-460.0,0.00023013,4]
[365849340,1749957044445,-1935.04,0.00023013,4]
[365849341,1749957044455,-489.55,0.00023013,2]
[365849342,1749957044464,-2556.6,0.00023013,4]
[365849343,1749957044474,-534.69,0.00023013,4]
[365849344,1749957044484,-460.0,0.00023013,4]
[365849345,1749957044494,-567.76,0.00023013,4]
[365849346,1749957044503,-624.12,0.00023013,4]
[365849347,1749957044512,-460.0,0.00023013,4]
[365849348,1749957044522,-460.0,0.00023013,4]
[365849349,1749957044531,-511.65,0.00023013,4]
[365849350,1749957044541,-460.0,0.00023013,4]
[365849351,1749957044551,-460.0,0.00023013,4]
[365849352,1749957044567,-698.94,0.00023013,4]
[365849353,1749957044576,-460.0,0.00023013,4]
[365849354,1749957044586,-4037.64,0.00023013,4]
[365849355,1749957044595,-2862.62,0.00023013,4]
[365849356,1749957044606,-3366.67,0.00023013,4]
[365849357,1749957044616,-928.5,0.00023013,4]
[365849358,1749957044626,-3798.54,0.00023013,4]
[365849359,1749957044638,-840.17,0.00023013,4]
[365849360,1749957044649,-460.0,0.00023013,4]
[365849361,1749957044659,-4684.17,0.00023013,4]
[365849362,1749957044668,-1265.76,0.00023013,4]
[365849363,1749957044678,-460.0,0.00023013,4]
[365849364,1749957044688,-1633.92,0.00023013,4]
[365849365,1749957044697,-856.87,0.00023013,4]
[365849366,1749957044707,-460.0,0.00023013,4]
[365849367,1749957044717,-982.09,0.00023013,4]
[365849368,1749957044727,-1992.96,0.00023013,4]
[365849369,1749957044737,-460.0,0.00023013,4]
[365849370,1749957044747,-585.25,0.00023013,4]
[365849371,1749957044756,-460.0,0.00023013,4]
[365849372,1749957044765,-669.0,0.00023013,4]
[365849373,1749957044776,-460.0,0.00023013,4]
[365849374,1749957044786,-783.8,0.00023013,4]
[365849375,1749957044795,-282.85601397,0.00023013,4]
[365849376,1749957044805,-1785.55,0.00023013,4]
[365849377,1749957044815,-573.55,0.00023013,4]
[365849378,1749957044824,-460.0,0.00023013,4]
[365849379,1749957044834,-460.0,0.00023013,4]
[365849380,1749957044845,-460.0,0.00023013,4]
[365849381,1749957044855,-460.0,0.00023013,4]
[365849382,1749957044866,-261.93447875,0.00023013,4]
[365849383,1749957044876,-460.0,0.00023013,4]
[365849384,1749957044886,-460.0,0.00023013,4]
[365849385,1749957044895,-2026.74,0.00023013,4]
[365849386,1749957044906,-460.0,0.00023013,4]
[365849387,1749957044918,-504.91,0.00023013,4]
[365849388,1749957044928,-460.0,0.00023013,4]
[365849389,1749957044938,-460.0,0.00023013,4]
[365849390,1749957045066,-576.52,0.00023013,4]
[365849391,1749957045076,-623.27,0.00023013,4]
[365849392,1749957045087,-581.42,0.00023013,4]
[365849393,1749957045096,-935.69,0.00023013,4]
[365849394,1749957045106,-593.12,0.00023013,4]
[365849395,1749957045115,-402.96553521,0.00023013,4]
[365849396,1749957045124,-265.06262506,0.00023013,4]
[365849397,1749957045134,-460.0,0.00023013,4]
[365849398,1749957045144,-3148.79,0.00023013,4]
[365849399,1749957045154,-460.0,0.00023013,4]
[365849400,1749957045165,-2007.11,0.00023013,4]
[365849401,1749957045175,-1299.81,0.00023013,4]
[365849402,1749957045185,-603.71,0.00023013,4]
[365849403,1749957045195,-460.0,0.00023013,4]
[365849404,1749957045205,-373.01440554,0.00023013,4]
[365849405,1749957045214,-621.56,0.00023013,4]
[365849406,1749957045224,-460.0,0.00023013,4]
[365849407,1749957045234,-460.0,0.00023013,4]
[365849408,1749957045244,-460.0,0.00023013,4]
[365849409,1749957045254,-1217.29,0.00023013,4]
[365849410,1749957045263,-2123.16,0.00023013,4]
[365849411,1749957045278,-460.0,0.00023013,4]
[365849412,1749957045287,-644.4,0.00023013,4]
[365849413,1749957045297,-460.0,0.00023013,4]
[365849414,1749957045307,-460.0,0.00023013,4]
[365849415,1749957045316,-501.8180993,0.00023021,2]
[365849416,1749957045326,-1000.0,0.00023021,2]
[365849417,1749957045336,-1001.32312854,0.00023021,2]
[365849418,1749957045346,-1001.22424022,0.00023021,2]
[365849419,1749957045356,-1000.0,0.00023021,2]
[365849420,1749957045366,-1002.13599302,0.00023021,2]
[365849421,1749957045375,-1000.0,0.00023021,2]
[365849422,1749957045385,-542.18707314,0.00023021,2]
[365849423,1749957045395,-1200.0,0.00023021,2]
[365849424,1749957045404,-1000.0,0.00023021,2]
[365849425,1749957045414,-501.65890684,0.00023021,2]
[365849426,1749957045424,-1002.3111618,0.00023021,2]
[365849427,1749957045434,-501.13444693,0.00023021,2]
[365849429,1749957045443,-284.08277887,0.00023021,2]
[365849430,1749957045453,-500.0,0.00023036,2]
[365849431,1749957045463,-604.606277,0.0002304,2]
[365849432,1749957045472,-275.0,0.00023051,2]
[365849433,1749957045482,-229.86375354,0.00023089,2]
[365849434,1749957045492,-500.0,0.00023093,2]
[365849435,1749957045502,-500.0,0.00023093,2]
[365849436,1749957045511,-845.25843836,0.00023094,2]
[365849437,1749957045521,-424.47602138,0.00023094,2]
[365849439,1749957045531,-160.0,0.00023094,2]
[365849441,1749957045541,-1100.34981603,0.00023107,8]
[365849443,1749957045550,-500.0,0.00023121,2]
[365849444,1749957045566,-405.0,0.0002313,2]
[365849446,1749957045575,-406.0,0.0002313,2]
[365849448,1749957045585,-500.0,0.00023135,2]
[365849450,1749957045595,-500.0,0.00023153,2]
[365849452,1749957045605,-500.0,0.00023168,2]
[365849453,1749957045615,-500.0,0.00023187,2]
[365849454,1749957045625,-887.47691889,0.000232,2]
[365849455,1749957045635,-1100.34981603,0.0002321,8]
[365849456,1749957045645,-500.0,0.00023264,2]
[365849457,1749957045655,-324.68665771,0.00023273,2]
[365849458,1749957045664,-500.0,0.00023273,2]
[365849459,1749957045673,-500.0,0.00023273,2]
[365849460,1749957045683,-500.0,0.00023273,2]
[365849461,1749957045692,-500.0,0.00023275,2]
[365849463,1749957045702,-280.0,0.00023287,4]
[365849465,1749957045712,-460.0,0.00023287,4]
[365849467,1749957045722,-582.57369683,0.00023287,4]
[365849469,1749957045732,-460.0,0.00023287,4]
[365849471,1749957045741,-460.0,0.00023287,4]
[365849473,1749957045751,-460.0,0.00023287,4]
[365849475,1749957045760,-460.0,0.00023287,4]
[365849477,1749957045769,-460.0,0.00023287,4]
[365849479,1749957045780,-460.0,0.00023287,4]
[365849481,1749957045789,-460.0,0.00023287,4]
[365849483,1749957045802,-627.93,0.00023287,4]
[365849485,1749957045812,-597.34,0.00023287,4]
[365849487,1749957045822,-460.0,0.00023287,4]
[365849489,1749957045831,-460.0,0.00023287,4]
[365849491,1749957045842,-718.27,0.00023287,4]
[365849493,1749957045851,-460.0,0.00023287,4]
[365849495,1749957045861,-460.0,0.00023287,4]
[365849497,1749957045872,-382.61927885,0.00023287,4]
[365849498,1749957045881,-754.2,0.00023287,4]
[365849499,1749957045891,-172.99016079,0.00023287,4]
[365849500,1749957045902,-460.0,0.00023287,4]
[365849501,1749957045912,-534.38745119,0.00023287,4]
[365849503,1749957045922,-460.0,0.00023287,4]
[365849505,1749957045931,-460.0,0.00023287,4]
[365849507,1749957045941,-460.0,0.00023287,4]
[365849509,1749957045950,-1935.04,0.00023287,4]
[365849511,1749957045960,-489.55,0.00023287,2]
[365849513,1749957045970,-2556.6,0.00023287,4]
[365849515,1749957045979,-534.69,0.00023287,4]
[365849517,1749957045988,-393.73311597,0.00023287,4]
[365849519,1749957045998,-567.76,0.00023287,4]
[365849521,1749957046007,-624.12,0.00023287,4]
[365849523,1749957046017,-460.0,0.00023287,4]
[365849525,1749957046027,-460.0,0.00023287,4]
[365849527,1749957046037,-511.65,0.00023287,4]
[365849529,1749957046047,-460.0,0.00023287,4]
[365849531,1749957046056,-190.0,0.00023287,4]
[365849533,1749957046066,-698.94,0.00023287,4]
[365849535,1749957046076,-460.0,0.00023287,4]
[365849536,1749957046085,-4037.64,0.00023287,4]
[365849539,1749957046096,-2862.62,0.00023287,4]
[365849540,1749957046105,-151.0,0.00023287,7]
[365849543,1749957046115,-3366.67,0.00023287,4]
[365849544,1749957046124,-928.5,0.00023287,4]
[365849546,1749957046134,-3798.54,0.00023287,4]
[365849548,1749957046144,-840.17,0.00023287,4]
[365849550,1749957046154,-460.0,0.00023287,4]
[365849552,1749957046163,-4684.17,0.00023287,4]
[365849554,1749957046173,-1265.76,0.00023287,4]
[365849556,1749957046183,-460.0,0.00023287,4]
[365849559,1749957046194,-1633.92,0.00023287,4]
[365849561,1749957046204,-856.87,0.00023287,4]
[365849562,1749957046215,-460.0,0.00023287,4]
[365849564,1749957046224,-982.09,0.00023287,4]
[365849566,1749957046234,-1992.96,0.00023287,4]
[365849568,1749957046245,-460.0,0.00023287,4]
[365849570,1749957046255,-585.25,0.00023287,4]
[365849572,1749957046264,-460.0,0.00023287,4]
[365849574,1749957046274,-669.0,0.00023287,4]
[365849576,1749957046283,-460.0,0.00023287,4]
[365849578,1749957046294,-783.8,0.00023287,4]
[365849580,1749957046303,-1785.55,0.00023287,4]
[365849582,1749957046312,-573.55,0.00023287,4]
[365849584,1749957046323,-460.0,0.00023287,4]
[365849586,1749957046333,-460.0,0.00023287,4]
[365849588,1749957046343,-460.0,0.00023287,4]
[365849590,1749957046353,-460.0,0.00023287,4]
[365849592,1749957046362,-460.0,0.00023287,4]
[365849594,1749957046371,-460.0,0.00023287,4]
[365849596,1749957046381,-2026.74,0.00023287,4]
[365849598,1749957046390,-460.0,0.00023287,4]
[365849600,1749957046400,-504.91,0.00023287,4]
[365849602,1749957046409,-460.0,0.00023287,4]
[365849604,1749957046419,-460.0,0.00023287,4]
[365849606,1749957046427,-576.52,0.00023287,4]
[365849608,1749957046437,-623.27,0.00023287,4]
[365849610,1749957046459,-581.42,0.00023287,4]
[365849612,1749957046469,-935.69,0.00023287,4]
[365849613,1749957046478,-593.12,0.00023287,4]
[365849616,1749957046488,-460.0,0.00023287,4]
[365849618,1749957046498,-3148.79,0.00023287,4]
[365849619,1749957046507,-460.0,0.00023287,4]
[365849621,1749957046516,-2007.11,0.00023287,4]
[365849623,1749957046525,-1299.81,0.00023287,4]
[365849625,1749957046535,-603.71,0.00023287,4]
[365849627,1749957046544,-460.0,0.00023287,4]
[365849629,1749957046555,-621.56,0.00023287,4]
[365849631,1749957046568,-460.0,0.00023287,4]
[365849633,1749957046577,-460.0,0.00023287,4]
[365849635,1749957046586,-198.827068,0.00023287,4]
[365849637,1749957046596,-1217.29,0.00023287,4]
[365849639,1749957046607,-2123.16,0.00023287,4]
[365849641,1749957046617,-460.0,0.00023287,4]
[365849643,1749957046626,-644.4,0.00023287,4]
[365849645,1749957046638,-460.0,0.00023287,4]
[365849647,1749957046647,-177.73597339,0.00023287,4]
[365849649,1749957046657,-82521.88,0.000233,7]
[365849651,1749957046666,-151.0,0.000233,7]
[365849653,1749957046675,-151.0,0.000233,7]
[365849654,1749957046685,-151.0,0.000233,7]
[365849656,1749957046699,-151.0,0.000233,7]
[365849658,1749957046709,-1100.34981603,0.00023314,9]
[365849660,1749957046718,-1009.62589891,0.00023321,2]
[365849662,1749957046727,-1001.22979174,0.00023321,2]
[365849664,1749957046737,-1000.0,0.00023321,2]
[365849666,1749957046747,-501.1319147,0.00023321,2]
[365849668,1749957046756,-500.0,0.0002333,2]
[365849670,1749957046766,-500.0,0.00023335,2]
[365849672,1749957046775,-964.0,0.00023338,2]
[365849674,1749957046786,-653.0,0.00023338,2]
[365849676,1749957046795,-2160.0,0.00023338,2]
[365849678,1749957046804,-500.0,0.00023346,2]
[365849681,1749957046814,-500.0,0.00023346,2]
[365849683,1749957046824,-500.0,0.00023356,2]
[365849685,1749957046833,-209.1601717,0.0002337,2]
[365849687,1749957046843,-500.0,0.00023406,2]
[365849689,1749957046852,-1100.34981603,0.00023417,9]
[365849690,1749957046861,-500.0,0.00023433,2]
[365849692,1749957046870,-1330.536389,0.00023442,3]
[365849694,1749957046880,-500.0,0.00023443,2]
[365849696,1749957046889,-500.0,0.00023467,2]
[365849698,1749957046898,-727.20082703,0.00023495,2]
[365849700,1749957046907,-500.0,0.000235,2]
[365849702,1749957046917,-639.0,0.000235,2]
[365849704,1749957046926,-1100.34981603,0.00023521,9]
[365849706,1749957046936,-151.0,0.00023561,7]
[365849708,1749957046946,-151.0,0.00023561,7]
[365849710,1749957046956,-151.0,0.00023561,7]
[365849712,1749957046966,-151.0,0.00023561,7]
[365849714,1749957046975,-460.0,0.00023561,4]
[365849716,1749957046985,-197.75116,0.00023561,7]
[365849718,1749957046995,-197.75116,0.00023561,7]
[365849720,1749957047005,-186.724186,0.00023561,2]
[365849722,1749957047014,-186.724186,0.00023561,2]
[365849724,1749957047024,-595.04216686,0.00023561,4]
[365849726,1749957047033,-460.0,0.00023561,4]
[365849728,1749957047043,-460.0,0.00023561,4]
[365849730,1749957047052,-460.0,0.00023561,4]
[365849732,1749957047061,-460.0,0.00023561,4]
[365849734,1749957047070,-460.0,0.00023561,4]
[365849736,1749957047080,-460.0,0.00023561,4]
[365849738,1749957047089,-627.93,0.00023561,4]
[365849739,1749957047099,-597.34,0.00023561,4]
[365849742,1749957047110,-460.0,0.00023561,4]
[365849744,1749957047120,-460.0,0.00023561,4]
[365849745,1749957047129,-718.27,0.00023561,4]
[365849747,1749957047142,-460.0,0.00023561,4]
[365849749,1749957047151,-559.57692072,0.00023561,4]
[365849751,1749957047161,-754.2,0.00023561,4]
[365849753,1749957047170,-460.0,0.00023561,4]
[365849755,1749957047179,-151.0,0.00023561,7]
[365849757,1749957047188,-579.10135825,0.00023561,4]
[365849759,1749957047197,-604.16853465,0.00023561,4]
[365849761,1749957047207,-460.0,0.00023561,4]
[365849763,1749957047216,-1935.04,0.00023561,4]
[365849765,1749957047226,-489.55,0.00023561,2]
[365849767,1749957047235,-2556.6,0.00023561,4]
[365849768,1749957047244,-534.69,0.00023561,4]
[365849769,1749957047254,-567.76,0.00023561,4]
[365849770,1749957047263,-624.12,0.00023561,4]
[365849771,1749957047272,-215.0265787,0.00023561,4]
[365849772,1749957047281,-460.0,0.00023561,4]
[365849773,1749957047290,-511.65,0.00023561,4]
[365849774,1749957047300,-698.94,0.00023561,4]
[365849775,1749957047309,-460.0,0.00023561,4]
[365849776,1749957047318,-4037.64,0.00023561,4]
[365849777,1749957047327,-2862.62,0.00023561,4]
[365849778,1749957047337,-3366.67,0.00023561,4]
[365849780,1749957047346,-928.5,0.00023561,4]
[365849782,1749957047356,-3798.54,0.00023561,4]
[365849784,1749957047365,-840.17,0.00023561,4]
[365849786,1749957047374,-460.0,0.00023561,4]
[365849788,1749957047384,-4684.17,0.00023561,4]
[365849791,1749957047394,-1265.76,0.00023561,4]
[365849793,1749957047404,-460.0,0.00023561,4]
[365849795,1749957047414,-1633.92,0.00023561,4]
[365849797,1749957047423,-856.87,0.00023561,4]
[365849799,1749957047432,-168.43747425,0.00023561,4]
[365849801,1749957047441,-982.09,0.00023561,4]
[365849802,1749957047450,-1992.96,0.00023561,4]
[365849804,1749957047459,-460.0,0.00023561,4]
[365849806,1749957047469,-585.25,0.00023561,4]
[365849808,1749957047478,-460.0,0.00023561,4]
[365849810,1749957047487,-669.0,0.00023561,4]
[365849812,1749957047496,-460.0,0.00023561,4]
[365849814,1749957047506,-783.8,0.00023561,4]
[365849817,1749957047515,-1785.55,0.00023561,4]
[365849818,1749957047524,-573.55,0.00023561,4]
[365849821,1749957047533,-460.0,0.00023561,4]
[365849823,1749957047545,-460.0,0.00023561,4]
[365849825,1749957047556,-460.0,0.00023561,4]
[365849827,1749957047567,-460.0,0.00023561,4]
[365849829,1749957047577,-572.39254253,0.00023561,4]
[365849831,1749957047586,-179.24976059,0.00023561,4]
[365849833,1749957047595,-2026.74,0.00023561,4]
[365849835,1749957047605,-460.0,0.00023561,4]
[365849837,1749957047614,-504.91,0.00023561,4]
[365849839,1749957047624,-229.16029784,0.00023561,4]
[365849841,1749957047635,-460.0,0.00023561,4]
[365849843,1749957047645,-576.52,0.00023561,4]
[365849845,1749957047655,-623.27,0.00023561,4]
[365849847,1749957047664,-581.42,0.00023561,4]
[365849849,1749957047674,-935.69,0.00023561,4]
[365849851,1749957047683,-593.12,0.00023561,4]
[365849853,1749957047692,-211.58596082,0.00023561,4]
[365849855,1749957047702,-3148.79,0.00023561,4]
[365849857,1749957047711,-460.0,0.00023561,4]
[365849860,1749957047720,-2007.11,0.00023561,4]
[365849861,1749957047730,-1299.81,0.00023561,4]
[365849864,1749957047739,-603.71,0.00023561,4]
[365849866,1749957047748,-238.86142643,0.00023561,4]
[365849867,1749957047757,-621.56,0.00023561,4]
[365849869,1749957047767,-460.0,0.00023561,4]
[365849872,1749957047776,-460.0,0.00023561,4]
[365849873,1749957047786,-1217.29,0.00023561,4]
[365849875,1749957047795,-2123.16,0.00023561,4]
[365849890,1749957047804,-460.0,0.00023561,4]
[365849892,1749957047922,-644.4,0.00023561,4]
[365849894,1749957047931,-460.0,0.00023561,4]
[365849896,1749957047940,-500.0,0.00023564,2]
[365849898,1749957047951,-501.2673906,0.00023568,2]
[365849900,1749957047961,-501.33803323,0.00023568,2]
[365849902,1749957047970,-394.24716771,0.00023568,2]
[365849904,1749957047979,-1800.0,0.00023568,2]
[365849906,1749957047988,-1500.0,0.00023568,2]
[365849908,1749957047998,-151.0,0.00023583,7]
[365849910,1749957048007,-3000.0,0.000236,2]
[365849912,1749957048016,-3000.0,0.0002361,2]
[365849914,1749957048026,-3000.0,0.0002362,2]
[365849916,1749957048035,-1100.34981603,0.00023624,9]
[365849918,1749957048045,-3000.0,0.0002363,2]
[365849920,1749957048054,-500.0,0.00023639,2]
[365849922,1749957048064,-3000.0,0.0002364,2]
[365849923,1749957048074,-304.26549004,0.00023641,2]
[365849926,1749957048084,-711.06366694,0.00023641,2]
[365849927,1749957048094,-90284.68800379,0.00023644,2]
[365849930,1749957048106,-151.0,0.00023644,7]
[365849932,1749957048116,-151.0,0.00023644,7]
[365849934,1749957048125,-151.0,0.00023644,7]
[365849935,1749957048135,-151.0,0.00023644,7]
[365849937,1749957048145,-151.0,0.00023644,7]
[365849939,1749957048155,-151.0,0.00023644,7]
[365849941,1749957048165,-151.0,0.00023644,7]
[365849944,1749957048177,-281.137993,0.00023644,7]
[365849946,1749957048187,-3000.0,0.0002365,2]
[365849948,1749957048196,-215.0738,0.00023653,2]
[365849950,1749957048205,-156.233307,0.00023657,7]
[365849951,1749957048214,-154.185041,0.00023657,7]
[365849953,1749957048223,-151.0,0.00023657,7]
[365849955,1749957048233,-151.0,0.00023657,7]
[365849958,1749957048243,-3000.0,0.0002366,2]
[365849960,1749957048253,-3000.0,0.0002367,2]
[365849962,1749957048262,-501.82273507,0.00023673,2]
[365849964,1749957048272,-500.0,0.00023673,2]
[365849966,1749957048282,-502.02931313,0.00023673,2]
[365849968,1749957048291,-252.66161971,0.00023673,2]
[365849970,1749957048301,-150.0,0.00023673,2]
[365849972,1749957048311,-153.308803,0.00023673,7]
[365849974,1749957048321,-153.308803,0.00023673,7]
[365849976,1749957048330,-3000.0,0.0002368,2]
[365849978,1749957048340,-3000.0,0.0002369,2]
[365849980,1749957048350,-500.0,0.00023695,2]
[365849982,1749957048360,-3000.0,0.000237,2]